[Event "FIDE Women World Blitz 2021"]
[Site "Warsaw"]
[Date "2021.12.29"]
[Round "9.16"]
[White "Babiy, Olga"]
[Black "Muetsch, Annmarie"]
[Result "1-0"]
[ECO "B07"]
[WhiteElo "2179"]
[BlackElo "2279"]
[Annotator "NA"]
[PlyCount "89"]
[EventDate "2021.12.29"]
[EventType "swiss"]
[EventCountry "POL"]
[Tiebreak "Cut1 Buchholz"]
[SourceTitle "playchess.com"]
[Source "ChessBase"]
[SourceQuality "1"]
[TimeControl "180+2"]

1. d4 {[%emt 0:00:00]} d6 {[%emt 0:00:00]} 2. e4 {[%emt 0:00:02]} Nf6 {[%emt 0:
00:06]} 3. Nc3 {[%emt 0:00:00]} Nbd7 {[%emt 0:00:01]} 4. f4 {[%emt 0:00:05]} e5
{[%emt 0:00:03]} 5. Nf3 {[%emt 0:00:01]} exf4 {[%emt 0:00:07]} 6. Bxf4 {
[%emt 0:00:02]} Qe7 {[%emt 0:00:03]} 7. Bd3 {[%emt 0:00:09]} g6 {[%emt 0:00:14]
} 8. Bg5 {[%emt 0:00:09]} c6 {[%emt 0:00:04]} 9. Qe2 {[%emt 0:00:05]} h6 {
[%emt 0:00:03]} 10. Bh4 {[%emt 0:00:02]} g5 {[%emt 0:00:02]} 11. Bg3 {[%emt 0:
00:06]} Nh5 {[%emt 0:00:04]} 12. O-O-O {[%emt 0:00:04]} Bg7 {[%emt 0:00:01]}
13. Bc4 {[%emt 0:00:25]} Nf8 {[%emt 0:00:10]} 14. Rhf1 {[%emt 0:00:16]} Ng6 {
[%emt 0:00:04]} 15. Kb1 {[%emt 0:00:06]} Ngf4 {[%emt 0:00:06]} 16. Qd2 {
[%emt 0:00:05]} Nxg3 {[%emt 0:00:04]} 17. hxg3 {[%emt 0:00:01]} Nh5 {[%emt 0:
00:01]} 18. Qf2 {[%emt 0:00:08]} Bg4 {[%emt 0:00:03]} 19. e5 {[%emt 0:00:21]}
d5 {[%emt 0:00:04]} 20. Bd3 {[%emt 0:00:05]} O-O-O {[%emt 0:00:09]} 21. Rde1 {
[%emt 0:00:03]} Kb8 {[%emt 0:00:08]} 22. Rh1 {[%emt 0:00:13]} f5 {[%emt 0:00:
15]} 23. Nh2 {[%emt 0:00:07]} Qe8 {[%emt 0:00:12]} 24. Nxg4 {[%emt 0:00:04]}
fxg4 {[%emt 0:00:02]} 25. Ne2 {[%emt 0:00:09]} Rf8 {[%emt 0:00:02]} 26. Qg1 {
[%emt 0:00:05]} Bh8 {[%emt 0:00:06]} 27. Qh2 {[%emt 0:00:01]} Ng7 {[%emt 0:00:
01]} 28. Qxh6 {[%emt 0:00:02]} Ne6 {[%emt 0:00:04]} 29. Ref1 {[%emt 0:00:04]}
Qe7 {[%emt 0:00:07]} 30. Qh5 {[%emt 0:00:16]} c5 {[%emt 0:00:06]} 31. Qxg4 {
[%emt 0:00:03]} cxd4 {[%emt 0:00:08]} 32. Bf5 {[%emt 0:00:07]} Nc5 {[%emt 0:00:
03]} 33. Nxd4 {[%emt 0:00:04]} Qxe5 {[%emt 0:00:01]} 34. c3 {[%emt 0:00:02]}
Na4 {[%emt 0:00:18]} 35. Re1 {[%emt 0:00:02]} Qc7 {[%emt 0:00:05]} 36. Bc2 {
[%emt 0:00:05]} Nc5 {[%emt 0:00:06]} 37. Qxg5 {[%emt 0:00:03]} Qb6 {[%emt 0:00:
04]} 38. Re2 {[%emt 0:00:15]} Bf6 {[%emt 0:00:03]} 39. Qf4+ {[%emt 0:00:02]}
Ka8 {[%emt 0:00:01]} 40. Rh6 {[%emt 0:00:05]} Qa6 {[%emt 0:00:05]} 41. Rf2 {
[%emt 0:00:03]} Rd6 {[%emt 0:00:10]} 42. g4 {[%emt 0:00:00]} Nd7 {[%emt 0:00:
07]} 43. Qe3 {[%emt 0:00:06]} Bxd4 {[%emt 0:00:05]} 44. Rxf8+ {[%emt 0:00:03]}
Nxf8 {[%emt 0:00:02]} 45. Qe8+ {[%emt 0:00:00]} 1-0

[Event "FIDE Women World Blitz 2021"]
[Site "Warsaw"]
[Date "2021.12.29"]
[Round "9.17"]
[White "Bulmaga, Irina"]
[Black "Kiolbasa, Oliwia"]
[Result "0-1"]
[ECO "C45"]
[WhiteElo "2405"]
[BlackElo "2403"]
[Annotator "NA"]
[PlyCount "88"]
[EventDate "2021.12.29"]
[EventType "swiss"]
[EventCountry "POL"]
[Tiebreak "Cut1 Buchholz"]
[SourceTitle "playchess.com"]
[Source "ChessBase"]
[SourceQuality "1"]
[TimeControl "180+2"]

1. e4 {[%emt 0:00:01]} e5 {[%emt 0:00:01]} 2. Nf3 {[%emt 0:00:02]} Nc6 {
[%emt 0:00:01]} 3. d4 {[%emt 0:00:01]} exd4 {[%emt 0:00:02]} 4. Nxd4 {[%emt 0:
00:02]} Bc5 {[%emt 0:00:01]} 5. Be3 {[%emt 0:00:01]} Qf6 {[%emt 0:00:01]} 6. c3
{[%emt 0:00:01]} Nge7 {[%emt 0:00:05]} 7. Bc4 {[%emt 0:00:02]} b6 {[%emt 0:00:
04]} 8. O-O {[%emt 0:00:06]} O-O {[%emt 0:00:04]} 9. Qd2 {[%emt 0:00:03]} Qg6 {
[%emt 0:00:13]} 10. Nxc6 {[%emt 0:00:05]} Qxc6 {[%emt 0:00:38]} 11. Bxc5 {
[%emt 0:00:03]} Qxc5 {[%emt 0:00:06]} 12. Na3 {[%emt 0:00:01]} a5 {[%emt 0:00:
17]} 13. Rac1 {[%emt 0:00:18]} a4 {[%emt 0:00:27]} 14. Qd4 {[%emt 0:00:06]} d6
{[%emt 0:00:12]} 15. Rfe1 {[%emt 0:00:36]} Ng6 {[%emt 0:00:30]} 16. Qxc5 {
[%emt 0:00:16]} dxc5 {[%emt 0:00:01]} 17. Nb5 {[%emt 0:00:18]} c6 {[%emt 0:00:
08]} 18. Nd6 {[%emt 0:00:02]} Ne5 {[%emt 0:00:03]} 19. f4 {[%emt 0:00:16]} Nxc4
{[%emt 0:00:06]} 20. Nxc4 {[%emt 0:00:01]} Be6 {[%emt 0:00:11]} 21. Ne5 {
[%emt 0:00:28]} Bxa2 {[%emt 0:00:19]} 22. Nxc6 {[%emt 0:00:01]} Bb3 {[%emt 0:
00:05]} 23. c4 {[%emt 0:00:13]} Rfe8 {[%emt 0:00:02]} 24. Ne5 {[%emt 0:00:12]}
f6 {[%emt 0:00:01]} 25. Nf3 {[%emt 0:00:10]} Rad8 {[%emt 0:00:05]} 26. Re2 {
[%emt 0:00:06]} Rd3 {[%emt 0:00:03]} 27. e5 {[%emt 0:00:02]} Bd1 {[%emt 0:00:
06]} 28. Re1 {[%emt 0:00:21]} Bxf3 {[%emt 0:00:01]} 29. gxf3 {[%emt 0:00:01]}
fxe5 {[%emt 0:00:01]} 30. fxe5 {[%emt 0:00:03]} Rxf3 {[%emt 0:00:01]} 31. Rcd1
{[%emt 0:00:02]} Rf4 {[%emt 0:00:05]} 32. Rd6 {[%emt 0:00:02]} Rxc4 {[%emt 0:
00:01]} 33. Rxb6 {[%emt 0:00:02]} Rb4 {[%emt 0:00:01]} 34. Rxb4 {[%emt 0:00:03]
} cxb4 {[%emt 0:00:01]} 35. Re4 {[%emt 0:00:00]} Rb8 {[%emt 0:00:05]} 36. Kf2 {
[%emt 0:00:03]} Kf7 {[%emt 0:00:01]} 37. e6+ {[%emt 0:00:01]} Ke7 {[%emt 0:00:
01]} 38. Ke3 {[%emt 0:00:01]} a3 {[%emt 0:00:04]} 39. bxa3 {[%emt 0:00:01]} b3
{[%emt 0:00:01]} 40. Ra4 {[%emt 0:00:04]} b2 {[%emt 0:00:01]} 41. Ra7+ {
[%emt 0:00:01]} Kxe6 {[%emt 0:00:02]} 42. Rxg7 {[%emt 0:00:02]} b1=Q {[%emt 0:
00:03]} 43. Rg3 {[%emt 0:00:02]} Rb3+ {[%emt 0:00:01]} 44. Kf4 {[%emt 0:00:01]}
Qf5# {[%emt 0:00:02]} 0-1

[Event "FIDE Women World Blitz 2021"]
[Site "Warsaw"]
[Date "2021.12.29"]
[Round "9.18"]
[White "Vantika Agrawal"]
[Black "Injac, Teodora"]
[Result "0-1"]
[ECO "E62"]
[WhiteElo "2329"]
[BlackElo "2387"]
[Annotator "NA"]
[PlyCount "110"]
[EventDate "2021.12.29"]
[EventType "swiss"]
[EventCountry "POL"]
[Tiebreak "Cut1 Buchholz"]
[SourceTitle "playchess.com"]
[Source "ChessBase"]
[SourceQuality "1"]
[TimeControl "180+2"]

1. d4 {[%emt 0:00:01]} Nf6 {[%emt 0:00:01]} 2. c4 {[%emt 0:00:01]} g6 {[%emt 0:
00:06]} 3. Nf3 Bg7 4. g3 {[%emt 0:00:02]} O-O {[%emt 0:00:01]} 5. Bg2 {[%emt 0:
00:01]} d6 {[%emt 0:00:01]} 6. O-O {[%emt 0:00:02]} Nc6 {[%emt 0:00:01]} 7. Nc3
{[%emt 0:00:01]} Bf5 {[%emt 0:00:01]} 8. d5 {[%emt 0:00:04]} Na5 {[%emt 0:00:
01]} 9. Nd2 {[%emt 0:00:02]} c5 {[%emt 0:00:02]} 10. e4 {[%emt 0:00:04]} Bg4 {
[%emt 0:00:00]} 11. Qc2 {[%emt 0:00:08]} a6 {[%emt 0:00:02]} 12. h3 {[%emt 0:
00:17]} Bd7 {[%emt 0:00:01]} 13. b3 {[%emt 0:00:08]} b5 {[%emt 0:00:02]} 14.
Bb2 {[%emt 0:00:03]} Rb8 {[%emt 0:00:02]} 15. Rab1 {[%emt 0:00:17]} e5 {
[%emt 0:00:01]} 16. dxe6 {[%emt 0:00:43]} Bxe6 {[%emt 0:00:01]} 17. cxb5 {
[%emt 0:00:09]} axb5 {[%emt 0:00:03]} 18. Rbd1 {[%emt 0:00:06]} Nc6 {[%emt 0:
00:11]} 19. Nf3 {[%emt 0:00:08]} Qc7 {[%emt 0:00:17]} 20. Nd5 {[%emt 0:00:13]}
Bxd5 {[%emt 0:00:19]} 21. exd5 {[%emt 0:00:09]} Nb4 {[%emt 0:00:01]} 22. Qb1 {
[%emt 0:00:05]} Nbxd5 {[%emt 0:00:13]} 23. Ng5 {[%emt 0:00:06]} Nb6 {[%emt 0:
00:28]} 24. Qa1 {[%emt 0:00:02]} Nh5 {[%emt 0:00:50]} 25. Bxg7 {[%emt 0:00:03]}
Nxg7 {[%emt 0:00:01]} 26. Ne4 {[%emt 0:00:01]} Rbd8 {[%emt 0:00:08]} 27. Nf6+ {
[%emt 0:00:09]} Kh8 28. Rfe1 {[%emt 0:00:02]} c4 {[%emt 0:00:27]} 29. Re4 {
[%emt 0:00:07]} d5 {[%emt 0:00:06]} 30. Rh4 {[%emt 0:00:03]} h5 {[%emt 0:00:07]
} 31. Nxd5 {[%emt 0:00:10]} Nxd5 {[%emt 0:00:01]} 32. Bxd5 {[%emt 0:00:03]} c3
{[%emt 0:00:05]} 33. Be4 {[%emt 0:00:25]} Rxd1+ 34. Qxd1 {[%emt 0:00:01]} Rd8 {
[%emt 0:00:05]} 35. Qc1 {[%emt 0:00:03]} Kg8 {[%emt 0:00:04]} 36. Rf4 {[%emt 0:
00:05]} Ne6 {[%emt 0:00:01]} 37. Rf3 {[%emt 0:00:03]} b4 {[%emt 0:00:01]} 38.
Re3 {[%emt 0:00:03]} Nd4 {[%emt 0:00:02]} 39. Kg2 {[%emt 0:00:02]} Kg7 {
[%emt 0:00:05]} 40. h4 {[%emt 0:00:02]} Qc5 {[%emt 0:00:01]} 41. Bf3 {[%emt 0:
00:02]} Rd6 {[%emt 0:00:01]} 42. Rd3 {[%emt 0:00:06]} Nf5 {[%emt 0:00:04]} 43.
Rxd6 Qxd6 {[%emt 0:00:01]} 44. Qc2 {[%emt 0:00:03]} Nd4 {[%emt 0:00:05]} 45.
Qd3 {[%emt 0:00:02]} Qc5 {[%emt 0:00:02]} 46. Be4 {[%emt 0:00:03]} c2 {[%emt 0:
00:03]} 47. Qe3 {[%emt 0:00:03]} c1=Q {[%emt 0:00:05]} 48. Qd3 {[%emt 0:00:02]}
Q1c3 {[%emt 0:00:03]} 49. Qa6 {[%emt 0:00:02]} Ne6 {[%emt 0:00:05]} 50. Qb7 {
[%emt 0:00:01]} Q3e5 {[%emt 0:00:03]} 51. Bf3 {[%emt 0:00:02]} Qcd6 {[%emt 0:
00:02]} 52. Qa8 {[%emt 0:00:02]} Qd2 {[%emt 0:00:01]} 53. Qb7 {[%emt 0:00:02]}
Qee3 {[%emt 0:00:04]} 54. Bd5 {[%emt 0:00:03]} Qdxf2+ {[%emt 0:00:02]} 55. Kh1
{[%emt 0:00:01]} Qee1# {[%emt 0:00:01]} 0-1

[Event "FIDE Women World Blitz 2021"]
[Site "Warsaw"]
[Date "2021.12.29"]
[Round "9.19"]
[White "Gaponenko, Inna"]
[Black "Garcia Martin, Marta"]
[Result "1-0"]
[ECO "C68"]
[WhiteElo "2339"]
[BlackElo "2194"]
[Annotator "NA"]
[PlyCount "79"]
[EventDate "2021.12.29"]
[EventType "swiss"]
[EventCountry "POL"]
[Tiebreak "Cut1 Buchholz"]
[SourceTitle "playchess.com"]
[Source "ChessBase"]
[SourceQuality "1"]
[TimeControl "180+2"]

1. e4 {[%emt 0:00:01]} e5 {[%emt 0:00:01]} 2. Nf3 {[%emt 0:00:01]} Nc6 {
[%emt 0:00:00]} 3. Bb5 {[%emt 0:00:01]} a6 {[%emt 0:00:01]} 4. Bxc6 {[%emt 0:
00:01]} dxc6 {[%emt 0:00:01]} 5. O-O {[%emt 0:00:02]} Bg4 {[%emt 0:00:03]} 6.
h3 {[%emt 0:00:02]} h5 {[%emt 0:00:00]} 7. d3 {[%emt 0:00:01]} Qf6 {[%emt 0:00:
01]} 8. Nbd2 {[%emt 0:00:01]} g5 {[%emt 0:00:02]} 9. Nc4 {[%emt 0:00:02]} Bxf3
{[%emt 0:00:02]} 10. Qxf3 {[%emt 0:00:03]} Qxf3 {[%emt 0:00:01]} 11. gxf3 {
[%emt 0:00:01]} f6 {[%emt 0:00:00]} 12. Be3 {[%emt 0:00:02]} c5 {[%emt 0:00:43]
} 13. c3 {[%emt 0:00:08]} O-O-O {[%emt 0:00:04]} 14. Rfd1 {[%emt 0:00:01]} Rh7
{[%emt 0:00:41]} 15. Kf1 {[%emt 0:00:12]} Rhd7 {[%emt 0:00:01]} 16. Ke2 {
[%emt 0:00:01]} h4 {[%emt 0:00:03]} 17. Rd2 {[%emt 0:00:07]} b6 {[%emt 0:00:16]
} 18. Rad1 {[%emt 0:00:10]} Ne7 {[%emt 0:00:06]} 19. d4 {[%emt 0:00:07]} cxd4 {
[%emt 0:00:02]} 20. cxd4 {[%emt 0:00:01]} exd4 {[%emt 0:00:02]} 21. Bxd4 {
[%emt 0:00:05]} Bg7 {[%emt 0:00:38]} 22. Ne3 {[%emt 0:00:59]} Ng6 {[%emt 0:00:
18]} 23. Nd5 {[%emt 0:00:01]} Kb7 {[%emt 0:00:17]} 24. Bc3 {[%emt 0:00:36]} c6
{[%emt 0:00:05]} 25. Nxf6 {[%emt 0:00:02]} Nf4+ {[%emt 0:00:05]} 26. Ke1 {
[%emt 0:00:22]} Rxd2 {[%emt 0:00:06]} 27. Rxd2 {[%emt 0:00:03]} Bxf6 {[%emt 0:
00:11]} 28. Bxf6 {[%emt 0:00:02]} Rxd2 {[%emt 0:00:02]} 29. Kxd2 {[%emt 0:00:
01]} Nxh3 {[%emt 0:00:01]} 30. Ke3 {[%emt 0:00:25]} Kc7 {[%emt 0:00:01]} 31. f4
{[%emt 0:00:02]} Nxf4 {[%emt 0:00:07]} 32. Bxg5 {[%emt 0:00:02]} Ng6 {[%emt 0:
00:02]} 33. f4 {[%emt 0:00:11]} h3 {[%emt 0:00:01]} 34. Kf3 {[%emt 0:00:01]}
Kd7 {[%emt 0:00:02]} 35. Kg3 {[%emt 0:00:01]} c5 {[%emt 0:00:02]} 36. Kxh3 {
[%emt 0:00:01]} b5 {[%emt 0:00:00]} 37. Kg4 {[%emt 0:00:02]} c4 {[%emt 0:00:04]
} 38. Kf5 {[%emt 0:00:02]} Ne7+ {[%emt 0:00:01]} 39. Bxe7 {[%emt 0:00:03]} Kxe7
{[%emt 0:00:01]} 40. Ke5 {[%emt 0:00:01]} 1-0

[Event "FIDE Women World Blitz 2021"]
[Site "Warsaw"]
[Date "2021.12.29"]
[Round "9.20"]
[White "Efroimski, Marsel"]
[Black "Garifullina, Leya"]
[Result "1-0"]
[ECO "B52"]
[WhiteElo "2419"]
[BlackElo "2416"]
[Annotator "NA"]
[PlyCount "38"]
[EventDate "2021.12.29"]
[EventType "swiss"]
[EventCountry "POL"]
[Tiebreak "Cut1 Buchholz"]
[SourceTitle "playchess.com"]
[Source "ChessBase"]
[SourceQuality "1"]
[TimeControl "180+2"]

1. e4 {[%emt 0:00:00]} c5 {[%emt 0:00:01]} 2. Nf3 {[%emt 0:00:01]} d6 {[%emt 0:
00:01]} 3. Bb5+ {[%emt 0:00:01]} Bd7 {[%emt 0:00:00]} 4. Bxd7+ {[%emt 0:00:03]}
Qxd7 {[%emt 0:00:01]} 5. c4 {[%emt 0:00:01]} Nf6 {[%emt 0:00:02]} 6. Nc3 {
[%emt 0:00:01]} g6 {[%emt 0:00:01]} 7. d4 {[%emt 0:00:01]} cxd4 {[%emt 0:00:01]
} 8. Nxd4 {[%emt 0:00:02]} Bg7 {[%emt 0:00:01]} 9. f3 {[%emt 0:00:41]} O-O {
[%emt 0:00:03]} 10. Be3 {[%emt 0:00:01]} Nc6 {[%emt 0:00:11]} 11. Rc1 {[%emt 0:
00:06]} Rac8 {[%emt 0:00:09]} 12. b3 {[%emt 0:00:01]} a6 {[%emt 0:00:11]} 13.
O-O {[%emt 0:00:09]} Nxd4 {[%emt 0:00:03]} 14. Bxd4 {[%emt 0:00:01]} b5 {
[%emt 0:00:07]} 15. cxb5 {[%emt 0:00:01]} axb5 {[%emt 0:00:01]} 16. Qd3 {
[%emt 0:00:02]} b4 {[%emt 0:00:31]} 17. Na4 {[%emt 0:00:01]} Qb7 {[%emt 0:00:
12]} 18. Qd2 {[%emt 0:00:14]} Nd7 {[%emt 0:00:22]} 19. Bxg7 {[%emt 0:00:03]}
Kxg7 {[%emt 0:00:02]} 1-0

[Event "FIDE Women World Blitz 2021"]
[Site "Warsaw"]
[Date "2021.12.29"]
[Round "9.21"]
[White "Hryzlova, Sofiia"]
[Black "Danielian, Elina"]
[Result "1-0"]
[ECO "A60"]
[WhiteElo "2097"]
[BlackElo "2450"]
[Annotator "ChessBase"]
[PlyCount "60"]
[EventDate "2021.12.29"]
[EventType "swiss"]
[EventCountry "POL"]
[Tiebreak "Cut1 Buchholz"]
[SourceTitle "playchess.com"]
[Source "ChessBase"]
[SourceQuality "1"]
[TimeControl "180+2"]

1. d4 {[%emt 0:00:01]} Nf6 {[%emt 0:00:01]} 2. c4 {[%emt 0:00:01]} e6 {[%emt 0:
00:01]} 3. Nc3 {[%emt 0:00:01]} c5 {[%emt 0:00:01]} 4. d5 {[%emt 0:00:04]} exd5
{[%emt 0:00:01]} 5. cxd5 {[%emt 0:00:01]} Bd6 {[%emt 0:00:00]} 6. g3 {[%emt 0:
00:07]} Bc7 {[%emt 0:00:01]} 7. Bg2 {[%emt 0:00:06]} d6 {[%emt 0:00:01]} 8. Nf3
{[%emt 0:00:04]} O-O {[%emt 0:00:02]} 9. O-O {[%emt 0:00:02]} a6 {[%emt 0:00:
01]} 10. a4 {[%emt 0:00:02]} Nbd7 {[%emt 0:00:01]} 11. Bf4 {[%emt 0:00:08]} Rb8
{[%emt 0:00:23]} 12. Qd3 {[%emt 0:00:16]} Re8 {[%emt 0:00:05]} 13. Rfb1 {
[%emt 0:00:16]} Nf8 {[%emt 0:00:09]} 14. b4 {[%emt 0:00:05]} Ng6 {[%emt 0:00:
16]} 15. Be3 {[%emt 0:00:26]} Ng4 {[%emt 0:01:02]} 16. Nd1 {[%emt 0:00:35]}
Nxe3 {[%emt 0:00:31]} 17. Nxe3 {[%emt 0:00:01]} b6 {[%emt 0:00:08]} 18. h4 {
[%emt 0:00:14]} h6 {[%emt 0:00:03]} 19. bxc5 {[%emt 0:00:15]} dxc5 {[%emt 0:00:
11]} 20. Rd1 {[%emt 0:00:04]} Bd6 {[%emt 0:00:10]} 21. Nc4 {[%emt 0:00:09]} b5
{[%emt 0:00:04]} 22. axb5 {[%emt 0:00:02]} axb5 {[%emt 0:00:01]} 23. Nxd6 {
[%emt 0:00:02]} Qxd6 {[%emt 0:00:01]} 24. Ra5 {[%emt 0:00:07]} c4 {[%emt 0:00:
03]} 25. Qc2 {[%emt 0:00:11]} Qb6 {[%emt 0:00:23]} 26. Raa1 {[%emt 0:00:03]}
Qc5 {[%emt 0:00:04]} 27. Nd4 {[%emt 0:00:07]} Bd7 {[%emt 0:00:04]} 28. Nb3 {
[%emt 0:00:18]} Qb4 {[%emt 0:00:05]} 29. Nd4 {[%emt 0:00:01]} Qc5 {[%emt 0:00:
04]} 30. Rac1 {[%emt 0:00:02]} Ne5 {[%emt 0:00:05]} 1-0

[Event "FIDE Women World Blitz 2021"]
[Site "Warsaw"]
[Date "2021.12.29"]
[Round "9.22"]
[White "Lagno, Kateryna"]
[Black "Strutinskaia, Galina"]
[Result "1-0"]
[ECO "B30"]
[WhiteElo "2550"]
[BlackElo "2188"]
[Annotator "ChessBase"]
[PlyCount "43"]
[EventDate "2021.12.29"]
[EventType "swiss"]
[EventCountry "POL"]
[Tiebreak "Cut1 Buchholz"]
[SourceTitle "playchess.com"]
[Source "ChessBase"]
[SourceQuality "1"]
[TimeControl "180+2"]

1. e4 {[%emt 0:00:01]} c5 {[%emt 0:00:01]} 2. Nf3 {[%emt 0:00:02]} Nc6 {
[%emt 0:00:03]} 3. Nc3 {[%emt 0:00:01]} Nf6 {[%emt 0:00:09]} 4. Bb5 {[%emt 0:
00:02]} Nd4 {[%emt 0:00:13]} 5. e5 {[%emt 0:00:01]} Nxb5 {[%emt 0:00:05]} 6.
Nxb5 {[%emt 0:00:02]} Nd5 {[%emt 0:00:04]} 7. Ng5 {[%emt 0:00:02]} f6 {[%emt 0:
00:16]} 8. Qh5+ {[%emt 0:00:34]} g6 {[%emt 0:00:02]} 9. Qf3 {[%emt 0:00:01]}
fxg5 {[%emt 0:00:35]} 10. Qxd5 {[%emt 0:00:02]} a6 {[%emt 0:00:00]} 11. Nc3 {
[%emt 0:00:02]} e6 {[%emt 0:00:07]} 12. Qf3 {[%emt 0:00:02]} Bg7 {[%emt 0:00:
14]} 13. Ne4 {[%emt 0:00:36]} Bxe5 {[%emt 0:00:20]} 14. d4 {[%emt 0:00:04]}
cxd4 {[%emt 0:00:30]} 15. Bxg5 {[%emt 0:00:03]} Qa5+ {[%emt 0:00:01]} 16. Bd2 {
[%emt 0:00:03]} Qb6 {[%emt 0:00:12]} 17. Nf6+ {[%emt 0:00:15]} Bxf6 {[%emt 0:
00:05]} 18. Qxf6 {[%emt 0:00:01]} Rf8 {[%emt 0:00:01]} 19. Qg7 {[%emt 0:00:08]}
Qxb2 {[%emt 0:00:16]} 20. O-O {[%emt 0:00:03]} Qxc2 {[%emt 0:00:02]} 21. Bb4 {
[%emt 0:00:02]} Qf5 {[%emt 0:00:10]} 22. Qe7# {[%emt 0:00:05]} 1-0

[Event "FIDE Women World Blitz 2021"]
[Site "Warsaw"]
[Date "2021.12.29"]
[Round "9.23"]
[White "Michna, Marta"]
[Black "Maisuradze, Nino"]
[Result "1-0"]
[ECO "A06"]
[WhiteElo "2312"]
[BlackElo "2175"]
[Annotator "NA"]
[PlyCount "60"]
[EventDate "2021.12.29"]
[EventType "swiss"]
[EventCountry "POL"]
[Tiebreak "Cut1 Buchholz"]
[SourceTitle "playchess.com"]
[Source "ChessBase"]
[SourceQuality "1"]
[TimeControl "180+2"]

1. Nf3 {[%emt 0:00:01]} d5 {[%emt 0:00:01]} 2. d3 {[%emt 0:00:01]} c5 {[%emt 0:
00:03]} 3. Nbd2 {[%emt 0:00:01]} Nc6 {[%emt 0:00:02]} 4. e4 {[%emt 0:00:02]} e5
{[%emt 0:00:03]} 5. Be2 {[%emt 0:00:09]} Nf6 {[%emt 0:00:06]} 6. O-O {[%emt 0:
00:02]} d4 {[%emt 0:00:11]} 7. Nc4 {[%emt 0:00:08]} Bd6 {[%emt 0:00:05]} 8. c3
{[%emt 0:00:02]} b5 {[%emt 0:00:27]} 9. Nxd6+ {[%emt 0:00:05]} Qxd6 {[%emt 0:
00:00]} 10. cxd4 {[%emt 0:00:11]} cxd4 {[%emt 0:00:05]} 11. Bg5 {[%emt 0:00:23]
} Nd7 {[%emt 0:00:16]} 12. Rc1 {[%emt 0:00:13]} O-O {[%emt 0:00:04]} 13. Nh4 {
[%emt 0:00:14]} Nb6 {[%emt 0:00:17]} 14. Bg4 {[%emt 0:00:16]} Na4 {[%emt 0:00:
20]} 15. Bxc8 {[%emt 0:00:07]} Raxc8 {[%emt 0:00:04]} 16. Nf5 {[%emt 0:00:03]}
Qe6 {[%emt 0:00:22]} 17. Qg4 {[%emt 0:00:16]} Kh8 {[%emt 0:00:10]} 18. Bh6 {
[%emt 0:00:19]} g6 {[%emt 0:00:47]} 19. Bg7+ {[%emt 0:00:09]} Kg8 {[%emt 0:00:
01]} 20. Bxf8 {[%emt 0:00:11]} Kxf8 {[%emt 0:00:03]} 21. Nh6 {[%emt 0:00:12]}
Nxb2 {[%emt 0:00:06]} 22. Qf3 {[%emt 0:00:12]} Na4 {[%emt 0:00:04]} 23. Qe2 {
[%emt 0:00:18]} Nc3 24. Qd2 {[%emt 0:00:01]} b4 {[%emt 0:00:01]} 25. f4 {
[%emt 0:00:03]} Kg7 {[%emt 0:00:04]} 26. f5 {[%emt 0:00:01]} Qd7 {[%emt 0:00:
07]} 27. fxg6 {[%emt 0:00:05]} f6 {[%emt 0:00:01]} 28. gxh7 {[%emt 0:00:03]}
Kxh7 {[%emt 0:00:04]} 29. Rxf6 {[%emt 0:00:02]} Qg7 {[%emt 0:00:02]} 30. Rf7 {
[%emt 0:00:02]} Rf8 {[%emt 0:00:03]} 1-0

[Event "FIDE Women World Blitz 2021"]
[Site "Warsaw"]
[Date "2021.12.29"]
[Round "9.24"]
[White "Atalik, Ekaterina"]
[Black "Cyfka, Karina"]
[Result "1-0"]
[ECO "E11"]
[WhiteElo "2430"]
[BlackElo "2416"]
[Annotator "NA"]
[PlyCount "89"]
[EventDate "2021.12.29"]
[EventType "swiss"]
[EventCountry "POL"]
[Tiebreak "Cut1 Buchholz"]
[SourceTitle "playchess.com"]
[Source "ChessBase"]
[SourceQuality "1"]
[TimeControl "180+2"]

1. d4 {[%emt 0:00:01]} Nf6 {[%emt 0:00:01]} 2. Nf3 {[%emt 0:00:01]} e6 {
[%emt 0:00:02]} 3. c4 {[%emt 0:00:03]} Bb4+ {[%emt 0:00:02]} 4. Bd2 {[%emt 0:
00:02]} Qe7 {[%emt 0:00:00]} 5. e3 {[%emt 0:00:03]} b6 {[%emt 0:00:05]} 6. a3 {
[%emt 0:00:05]} Bxd2+ {[%emt 0:00:02]} 7. Nbxd2 {[%emt 0:00:01]} O-O {[%emt 0:
00:05]} 8. Be2 {[%emt 0:00:03]} Bb7 {[%emt 0:00:04]} 9. O-O {[%emt 0:00:03]} d6
{[%emt 0:00:02]} 10. Qc2 {[%emt 0:00:08]} Nbd7 {[%emt 0:00:06]} 11. b4 {
[%emt 0:00:04]} e5 {[%emt 0:00:03]} 12. d5 {[%emt 0:00:06]} h6 {[%emt 0:00:17]}
13. Nb3 {[%emt 0:00:04]} Rac8 {[%emt 0:00:22]} 14. Rfd1 {[%emt 0:00:04]} g6 {
[%emt 0:00:04]} 15. e4 {[%emt 0:00:15]} c6 {[%emt 0:00:36]} 16. Qd3 {[%emt 0:
00:29]} cxd5 {[%emt 0:00:08]} 17. cxd5 {[%emt 0:00:02]} Nh5 {[%emt 0:00:03]}
18. Bf1 {[%emt 0:00:03]} f5 {[%emt 0:00:09]} 19. Qe3 {[%emt 0:00:09]} f4 {
[%emt 0:00:13]} 20. Qd2 {[%emt 0:00:03]} g5 {[%emt 0:00:04]} 21. Rdc1 {[%emt 0:
00:06]} g4 {[%emt 0:00:04]} 22. Ne1 {[%emt 0:00:02]} Nhf6 {[%emt 0:00:04]} 23.
f3 {[%emt 0:00:06]} gxf3 {[%emt 0:00:03]} 24. gxf3 {[%emt 0:00:02]} Kh8 {
[%emt 0:00:07]} 25. Rxc8 {[%emt 0:00:06]} Rxc8 {[%emt 0:00:02]} 26. Rc1 {
[%emt 0:00:01]} Rxc1 {[%emt 0:00:13]} 27. Qxc1 {[%emt 0:00:03]} Nf8 {[%emt 0:
00:05]} 28. Ng2 {[%emt 0:00:07]} Ng6 {[%emt 0:00:09]} 29. Bb5 {[%emt 0:00:04]}
Kg7 {[%emt 0:00:05]} 30. a4 {[%emt 0:00:18]} Qd8 {[%emt 0:00:14]} 31. a5 {
[%emt 0:00:03]} Bc8 {[%emt 0:00:03]} 32. Qc6 {[%emt 0:00:11]} Ne7 {[%emt 0:00:
07]} 33. Qc3 {[%emt 0:00:08]} Ng6 {[%emt 0:00:06]} 34. a6 {[%emt 0:00:14]} Bh3
{[%emt 0:00:04]} 35. Qc6 {[%emt 0:00:07]} Ne7 {[%emt 0:00:04]} 36. Qb7 {
[%emt 0:00:02]} Kf7 {[%emt 0:00:04]} 37. Nd2 {[%emt 0:00:03]} Qg8 {[%emt 0:00:
05]} 38. Bf1 {[%emt 0:00:02]} Ne8 {[%emt 0:00:06]} 39. Qxa7 {[%emt 0:00:05]} h5
{[%emt 0:00:03]} 40. Qb7 {[%emt 0:00:03]} h4 {[%emt 0:00:01]} 41. Kf2 {[%emt 0:
00:03]} Bc8 {[%emt 0:00:03]} 42. Qxb6 {[%emt 0:00:04]} h3 {[%emt 0:00:00]} 43.
Ne1 {[%emt 0:00:02]} Qg5 {[%emt 0:00:02]} 44. a7 {[%emt 0:00:03]} Qh4+ {
[%emt 0:00:01]} 45. Ke2 {[%emt 0:00:01]} 1-0